lending/lending_fUSD_20260328
["ID","MTS","AMOUNT","RATE_DAILY","PERIOD"]
[418981795,1774708249761,-164.92,0.00022,2]
[418981796,1774708249771,-160.0,0.00022,2]
[418981797,1774708249780,-1300.0,0.00022,2]
[418981798,1774708249789,-500.0,0.00022,2]
[418981799,1774708249799,-500.0,0.00022,2]
[418981800,1774708249808,-2500.0,0.00022,2]
[418981801,1774708249818,-500.0,0.00022,2]
[418981802,1774708249827,-226.93397749,0.00022,2]
[418981803,1774708249836,-1300.0,0.00022,2]
[418981804,1774708249846,-500.0,0.00022,2]
[418981805,1774708249855,-500.0,0.00022,2]
[418981806,1774708249983,-658.42439949,0.00022,2]
[418981807,1774708249993,-1000.0,0.00022,2]
[418981808,1774708250003,-2500.0,0.00022,2]
[418981809,1774708250013,-500.0,0.00022,2]
[418981810,1774708250022,-1300.0,0.00022,2]
[418981811,1774708250032,-500.0,0.00022,2]
[418981812,1774708250042,-500.0,0.00022,2]
[418981813,1774708250051,-1000.0,0.00022,2]
[418981814,1774708250060,-2500.0,0.00022,2]
[418981815,1774708250071,-500.0,0.00022,2]
[418981816,1774708250080,-1300.0,0.00022,2]
[418981817,1774708250090,-500.7,0.00022,2]
[418981818,1774708250100,-500.0,0.00022,2]
[418981819,1774708250110,-1000.0,0.00022,2]
[418981820,1774708250120,-2500.0,0.00022,2]
[418981821,1774708250130,-500.0,0.00022,2]
[418981822,1774708250140,-500.0,0.00022,2]
[418981823,1774708250149,-1300.0,0.00022,2]
[418981824,1774708250159,-500.0,0.00022,2]
[418981825,1774708250168,-2500.0,0.00022,2]
[418981826,1774708250177,-1000.0,0.00022,2]
[418981827,1774708250187,-500.0,0.00022,2]
[418981828,1774708250196,-1300.0,0.00022,2]
[418981829,1774708250205,-1000.0,0.00022,2]
[418981830,1774708250215,-2500.0,0.00022,2]
[418981831,1774708250224,-1000.0,0.00022,2]
[418981832,1774708250233,-2500.0,0.00022,2]
[418981833,1774708250242,-1300.0,0.00022,2]
[418981834,1774708250252,-1000.0,0.00022,2]
[418981835,1774708250261,-2500.0,0.00022,2]
[418981836,1774708250271,-1300.0,0.00022,2]
[418981837,1774708250280,-1000.0,0.00022,2]
[418981838,1774708250290,-2500.0,0.00022,2]
[418981839,1774708250299,-500.0,0.00022,2]
[418981840,1774708250309,-1300.0,0.00022,2]
[418981841,1774708250318,-8100.0,0.00022,2]
[418981842,1774708250327,-1000.0,0.00022,2]
[418981843,1774708250337,-2500.0,0.00022,2]
[418981844,1774708250346,-358.71075406,0.00022,2]
[418981845,1774708250356,-900.0,0.00022,2]
[418981846,1774708250366,-500.0,0.00022,2]
[418981847,1774708250375,-1300.0,0.00022,2]
[418981848,1774708250385,-500.0,0.00022,2]
[418981849,1774708250395,-500.0,0.00022,2]
[418981850,1774708250405,-8100.0,0.00022,2]
[418981851,1774708250414,-1000.0,0.00022,2]
[418981852,1774708250423,-2500.0,0.00022,2]
[418981853,1774708250433,-500.0,0.00022,2]
[418981854,1774708250443,-900.0,0.00022,2]
[418981855,1774708250453,-500.0,0.00022,2]
[418981856,1774708250463,-1300.0,0.00022,2]
[418981857,1774708250472,-607.23173059,0.00022,2]
[418981858,1774708250482,-8100.0,0.00022,2]
[418981859,1774708250491,-1000.0,0.00022,2]
[418981860,1774708250501,-2500.0,0.00022,2]
[418981861,1774708250510,-900.0,0.00022,2]
[418981862,1774708250519,-1300.0,0.00022,2]
[418981863,1774708250528,-8100.0,0.00022,2]
[418981864,1774708250538,-1000.0,0.00022,2]
[418981865,1774708250547,-1300.0,0.00022,2]
[418981866,1774708250556,-2500.0,0.00022,2]
[418981867,1774708250566,-900.0,0.00022,2]
[418981868,1774708250575,-1300.0,0.00022,2]
[418981869,1774708250585,-8100.0,0.00022,2]
[418981870,1774708250594,-1000.0,0.00022,2]
[418981871,1774708250605,-2500.0,0.00022,2]
[418981872,1774708250614,-1300.0,0.00022,2]
[418981873,1774708250624,-900.0,0.00022,2]
[418981874,1774708250632,-1300.0,0.00022,2]
[418981875,1774708250641,-1000.0,0.00022,2]
[418981876,1774708250651,-1300.0,0.00022,2]
[418981877,1774708250660,-2500.0,0.00022,2]
[418981878,1774708250671,-8100.0,0.00022,2]
[418981879,1774708250681,-900.0,0.00022,2]
[418981880,1774708250691,-500.0,0.00022,2]
[418981881,1774708250701,-1000.0,0.00022,2]
[418981882,1774708250710,-1300.0,0.00022,2]
[418981883,1774708250720,-8100.0,0.00022,2]
[418981884,1774708250730,-900.0,0.00022,2]
[418981885,1774708250739,-1300.0,0.00022,2]
[418981886,1774708250749,-751.11073656,0.00022,2]
[418981887,1774708250758,-8100.0,0.00022,2]
[418981888,1774708250768,-900.0,0.00022,2]
[418981889,1774708250777,-500.0,0.00022,2]
[418981890,1774708250786,-1300.0,0.00022,2]
[418981891,1774708250796,-900.0,0.00022,2]
[418981892,1774708250806,-8100.0,0.00022,2]
[418981893,1774708250816,-500.0,0.00022,2]
[418981894,1774708250826,-1300.0,0.00022,2]
[418981895,1774708250835,-346.07913606,0.00022,2]
[418981896,1774708250845,-900.0,0.00022,2]
[418981897,1774708250854,-8100.0,0.00022,2]
[418981898,1774708250863,-500.0,0.00022,2]
[418981899,1774708250872,-500.0,0.00022,2]
[418981900,1774708250882,-500.0,0.00022,2]
[418981901,1774708250891,-1300.0,0.00022,2]
[418981902,1774708250900,-900.0,0.00022,2]
[418981903,1774708250910,-8100.0,0.00022,2]
[418981904,1774708250919,-925.4134589,0.00022,2]
[418981905,1774708250929,-1300.0,0.00022,2]
[418981906,1774708250938,-500.0,0.00022,2]
[418981907,1774708250948,-500.0,0.00022,2]
[418981908,1774708250958,-8100.0,0.00022,2]
[418981909,1774708250967,-1300.0,0.00022,2]
[418981910,1774708250977,-500.0,0.00022,2]
[418981911,1774708250987,-500.0,0.00022,2]
[418981912,1774708250998,-8100.0,0.00022,2]
[418981913,1774708251008,-1300.0,0.00022,2]
[418981914,1774708251017,-500.0,0.00022,2]
[418981915,1774708251027,-900.0,0.00022,2]
[418981916,1774708251036,-500.0,0.00022,2]
[418981917,1774708251046,-8100.0,0.00022,2]
[418981918,1774708251055,-500.0,0.00022,2]
[418981919,1774708251065,-1300.0,0.00022,2]
[418981920,1774708251075,-500.0,0.00022,2]
[418981921,1774708251084,-900.0,0.00022,2]
[418981922,1774708251094,-500.0,0.00022,2]
[418981923,1774708251104,-500.0,0.00022,2]
[418981924,1774708251114,-8100.0,0.00022,2]
[418981925,1774708251123,-1300.0,0.00022,2]
[418981926,1774708251133,-500.0,0.00022,2]
[418981927,1774708251143,-1300.0,0.00022,2]
[418981928,1774708251152,-900.0,0.00022,2]
[418981929,1774708251162,-500.0,0.00022,2]
[418981930,1774708251171,-500.0,0.00022,2]
[418981931,1774708251180,-1300.0,0.00022,2]
[418981932,1774708251189,-500.0,0.00022,2]
[418981933,1774708251199,-1300.0,0.00022,2]
[418981934,1774708251208,-500.0,0.00022,2]
[418981935,1774708251217,-500.0,0.00022,2]
[418981936,1774708251227,-1300.0,0.00022,2]
[418981937,1774708251236,-500.0,0.00022,2]
[418981938,1774708251245,-1300.0,0.00022,2]
[418981939,1774708251256,-500.0,0.00022,2]
[418981940,1774708251265,-500.0,0.00022,2]
[418981941,1774708251276,-1300.0,0.00022,2]
[418981942,1774708251285,-500.0,0.00022,2]
[418981943,1774708251295,-500.0,0.00022,2]
[418981944,1774708251304,-1300.0,0.00022,2]
[418981945,1774708251314,-500.0,0.00022,2]
[418981946,1774708251324,-500.0,0.00022,2]
[418981947,1774708251333,-500.0,0.00022,2]
[418981948,1774708251343,-1300.0,0.00022,2]
[418981949,1774708251352,-500.0,0.00022,2]
[418981950,1774708251362,-500.0,0.00022,2]
[418981951,1774708251371,-500.0,0.00022,2]
[418981952,1774708251380,-1300.0,0.00022,2]
[418981953,1774708251390,-500.0,0.00022,2]
[418981954,1774708251399,-1300.0,0.00022,2]
[418981955,1774708251409,-500.0,0.00022,2]
[418981956,1774708251418,-500.0,0.00022,2]
[418981957,1774708251427,-500.0,0.00022,2]
[418981958,1774708251437,-500.0,0.00022,2]
[418981959,1774708251446,-1300.0,0.00022,2]
[418981960,1774708251456,-500.0,0.00022,2]
[418981961,1774708251465,-1300.0,0.00022,2]
[418981962,1774708251474,-1300.0,0.00022,2]
[418981963,1774708251483,-1300.0,0.00022,2]
[418981964,1774708251493,-1300.0,0.00022,2]
[418981965,1774708251502,-1300.0,0.00022,2]
[418981966,1774708251511,-500.7,0.00022,2]
[418981967,1774708251521,-500.0,0.00022,2]
[418981968,1774708251530,-500.0,0.00022,2]
[418981969,1774708251540,-500.0,0.00022,2]
[418981970,1774708251549,-500.0,0.00022,2]
[418981971,1774708251559,-500.0,0.00022,2]
[418981972,1774708251568,-156.50311329,0.00022,2]
[418981973,1774708251578,-500.0,0.00022,2]
[418981974,1774708251587,-500.0,0.00022,2]
[418981975,1774708251596,-500.0,0.00022,2]
[418981976,1774708251605,-500.0,0.00022,2]
[418981977,1774708251615,-131907.40099095,0.00022,4]
[418981978,1774708251625,-806.50422472,0.00022,7]
[418981979,1774708251634,-155.0,0.00022,2]
[418981980,1774708251643,-272.0,0.00022,2]
[418981981,1774708251652,-397.0,0.00022,2]
[418981982,1774708251662,-191.73,0.00022,6]
[418981983,1774708251671,-177.0,0.00022,2]
[418981984,1774708251681,-229.0,0.00022,2]
[418981985,1774708251690,-498.19039346,0.000221,2]
[418981986,1774708251699,-242.10971953,0.0002211,2]
[418981987,1774708251709,-650.0,0.00022212,2]
[418981988,1774708251718,-476.53,0.00022235,2]
[418981989,1774708251728,-350.0,0.00022301,2]
[418981990,1774708251737,-304.74111163,0.00022366,2]
[418981991,1774708251747,-2258.0,0.00022399,2]
[418981992,1774708251756,-350.0,0.00022448,2]
[418981993,1774708251766,-750.0,0.00022466,2]
[418981994,1774708251776,-35778.35105236,0.000225,2]
[418981995,1774708251785,-2120.06,0.000225,7]
[418981996,1774708251795,-2957.83,0.000225,7]
[418981997,1774708251804,-350.0,0.00022559,2]
[418981998,1774708251814,-3632.80081112,0.000226,2]
[418981999,1774708251824,-233.7,0.00022603,2]
[418982000,1774708251833,-527.27893603,0.0002271,2]
[418982001,1774708251842,-388.35955312,0.00022721,2]
[418982002,1774708251852,-4091.97,0.0002274,2]
[418982003,1774708251861,-750.0,0.0002276,2]
[418982004,1774708251871,-9035.0,0.00022792,2]
[418982005,1774708251880,-3605.62,0.000228,7]
[418982006,1774708251890,-503.0,0.000229,7]
[418982007,1774708251899,-2368.01,0.000229,7]
[418982008,1774708251908,-2000.0,0.000229,2]
[418982009,1774708251918,-1720.16,0.00022921,2]
[418982010,1774708251927,-1324.0,0.00022944,2]
[418982011,1774708251936,-250.0,0.00022956,2]
[418982012,1774708251945,-642.94438865,0.00023,7]
[418982013,1774708251959,-306152.84344151,0.00023,2]
[418982014,1774708251968,-1338.6871,0.00023,2]
[418982015,1774708251978,-155.0,0.00023,2]
[418982016,1774708251988,-272.0,0.00023,2]
[418982017,1774708251998,-151.0,0.00023,2]
[418982018,1774708252007,-159.799837,0.00023,3]
[418982019,1774708252016,-151.0,0.00023,2]
[418982020,1774708252026,-151.0,0.00023,2]
[418982021,1774708252036,-151.0,0.00023,2]
[418982022,1774708252046,-397.0,0.00023,2]
[418982023,1774708252056,-151.0,0.00023,2]
[418982024,1774708252066,-151.0,0.00023,2]
[418982025,1774708252076,-160.0,0.00023,7]
[418982026,1774708252085,-151.0,0.00023,2]
[418982027,1774708252095,-151.0,0.00023,2]
[418982028,1774708252104,-271.809965,0.00023,2]
[418982029,1774708252114,-271.809965,0.00023,2]
[418982030,1774708252123,-271.809965,0.00023,2]
[418982031,1774708252133,-271.809965,0.00023,2]
[418982032,1774708252142,-207.98764,0.00023,2]
[418982033,1774708252152,-207.98764,0.00023,2]
[418982034,1774708252161,-207.98764,0.00023,2]
[418982035,1774708252170,-207.98764,0.00023,2]
[418982036,1774708252180,-151.0,0.00023,2]
[418982037,1774708252190,-151.0,0.00023,2]
[418982038,1774708252199,-500.0,0.00023,2]
[418982039,1774708252209,-151.0,0.00023,2]
[418982040,1774708252218,-151.0,0.00023,2]
[418982041,1774708252227,-271.46715,0.00023,2]
[418982042,1774708252237,-151.0,0.00023,2]
[418982043,1774708252247,-151.0,0.00023,2]
[418982044,1774708252256,-151.0,0.00023,2]
[418982045,1774708252265,-151.0,0.00023,2]
[418982046,1774708252275,-151.0,0.00023,2]
[418982047,1774708252284,-406.762198,0.00023,2]
[418982048,1774708252293,-406.762198,0.00023,2]
[418982049,1774708252303,-406.762198,0.00023,2]
[418982050,1774708252312,-406.762198,0.00023,2]
[418982051,1774708252322,-1837.713949,0.00023,2]
[418982052,1774708252332,-1837.713949,0.00023,2]
[418982053,1774708252342,-151.0,0.00023,2]
[418982054,1774708252351,-1837.713949,0.00023,2]
[418982055,1774708252360,-1837.713949,0.00023,2]
[418982056,1774708252370,-9245.710185,0.00023,2]
[418982057,1774708252380,-9245.710185,0.00023,2]
[418982058,1774708252389,-9245.710185,0.00023,2]
[418982059,1774708252399,-9245.710185,0.00023,2]
[418982060,1774708252408,-188.291554,0.00023,2]
[418982061,1774708252418,-188.291554,0.00023,2]
[418982062,1774708252427,-188.291554,0.00023,2]
[418982063,1774708252437,-188.291554,0.00023,2]
[418982064,1774708252448,-151.0,0.00023,2]
[418982065,1774708252457,-151.0,0.00023,2]
[418982066,1774708252467,-151.0,0.00023,2]
[418982067,1774708252476,-151.0,0.00023,2]
[418982068,1774708252487,-177.0,0.00023,2]
[418982069,1774708252496,-182.803556,0.00023,2]
[418982070,1774708252506,-182.803556,0.00023,2]
[418982071,1774708252515,-182.803556,0.00023,2]
[418982072,1774708252525,-249.669586,0.00023,2]
[418982073,1774708252534,-182.803556,0.00023,2]
[418982074,1774708252543,-249.669586,0.00023,2]
[418982075,1774708252553,-249.669586,0.00023,2]
[418982076,1774708252562,-249.669586,0.00023,2]
[418982077,1774708252571,-229.0,0.00023,2]
[418982078,1774708252582,-606.320897,0.00023,2]
[418982079,1774708252592,-606.320897,0.00023,2]
[418982080,1774708252601,-606.320897,0.00023,2]
[418982081,1774708252611,-606.320897,0.00023,2]
[418982082,1774708252621,-151.0,0.00023,2]
[418982083,1774708252631,-151.0,0.00023,2]
[418982084,1774708252640,-393.472175,0.00023,2]
[418982085,1774708252649,-393.472175,0.00023,2]
[418982086,1774708252770,-393.472175,0.00023,2]
[418982087,1774708252780,-393.472175,0.00023,2]
[418982088,1774708252791,-850.0,0.00023014,2]
[418982089,1774708252800,-13566.7259,0.000231,2]
[418982090,1774708252810,-1024.97478887,0.000232,2]
[418982091,1774708252819,-1000.0,0.00023288,2]
[418982092,1774708252829,-215.03606229,0.00023308,2]
[418982093,1774708252838,-180.0,0.00023356,2]
[418982094,1774708252847,-16717.74,0.000234,2]
[418982095,1774708252856,-168.19,0.00023482,2]
[418982096,1774708252866,-1339.6,0.00023504,2]
[418982097,1774708252876,-350.0,0.00023512,2]
[418982098,1774708252885,-950.0,0.00023562,2]
[418982099,1774708252894,-350.0,0.00023722,2]
[418982100,1774708252904,-1029.97750525,0.00024,2]
[418982101,1774708252913,-3600.0,0.00024,2]
[418982102,1774708252923,-1245.29078095,0.00024,2]
[418982103,1774708252933,-158.86354993,0.00024,2]
[418982104,1774708252944,-272.0,0.00024,2]
[418982105,1774708252954,-397.0,0.00024,2]
[418982106,1774708252964,-160.0,0.00024,3]
[418982107,1774708252974,-177.0,0.00024,2]
[418982108,1774708252983,-229.0,0.00024,2]
[418982109,1774708252993,-1050.0,0.0002411,2]
[418982110,1774708253003,-519.0,0.00024154,10]
[418982111,1774708253013,-425.40862126,0.0002421,2]
[418982112,1774708253023,-3727.17523582,0.0002421,2]
[418982113,1774708253033,-1759.959,0.000243,2]
[418982114,1774708253043,-250.0,0.00024398,2]
[418982115,1774708253052,-3162.0,0.00024568,2]
[418982116,1774708253062,-2120.06,0.000246,7]
[418982117,1774708253072,-2957.83,0.000246,7]
[418982118,1774708253082,-169.67901442,0.0002465,2]
[418982119,1774708253092,-151.0,0.00024655,7]
[418982120,1774708253101,-1500.0,0.00024658,2]
[418982121,1774708253110,-1035.82335233,0.00024658,2]
[418982122,1774708253122,-3559.0,0.00024658,120]
[418982123,1774708253132,-1000.0,0.00024658,2]
[418982124,1774708253142,-876.59,0.00024658,2]
[418982125,1774708253152,-170.706749,0.00024658,2]
[418982126,1774708253161,-170.706749,0.00024658,2]
[418982127,1774708253171,-170.706749,0.00024658,2]
[418982128,1774708253180,-170.706749,0.00024658,2]
[418982129,1774708253189,-170.706749,0.00024658,2]
[418982130,1774708253199,-170.706749,0.00024658,2]
[418982131,1774708253209,-170.706749,0.00024658,2]
[418982132,1774708253218,-170.706749,0.00024658,2]
[418982133,1774708253227,-170.706749,0.00024658,2]
[418982134,1774708253237,-170.706749,0.00024658,2]
[418982135,1774708253245,-170.706749,0.00024658,2]
[418982136,1774708253256,-170.706749,0.00024658,2]
[418982137,1774708253265,-151.0,0.00024658,2]
[418982138,1774708253274,-151.0,0.00024658,2]
[418982139,1774708253284,-151.0,0.00024658,2]
[418982140,1774708253293,-151.0,0.00024658,2]
[418982141,1774708253304,-151.0,0.00024658,2]
[418982142,1774708253313,-151.0,0.00024658,2]
[418982143,1774708253323,-151.0,0.00024658,2]
[418982144,1774708253333,-151.0,0.00024658,2]
[418982145,1774708253343,-151.0,0.00024658,2]
[418982146,1774708253352,-278.958688,0.00024658,2]
[418982147,1774708253362,-151.0,0.00024658,2]
[418982148,1774708253372,-162.967794,0.00024658,2]
[418982149,1774708253382,-304.74111163,0.00024726,2]
[418982150,1774708253391,-1045.0,0.00024756,2]
[418982151,1774708253402,-503.0,0.000248,7]
[418982152,1774708253412,-1262.0,0.00024808,2]
[418982153,1774708253421,-924.0,0.00024808,2]
[418982154,1774708253431,-1216.0,0.00024808,2]
[418982155,1774708253441,-2368.01,0.000249,7]
[418982156,1774708253450,-3605.62,0.000249,7]
[418982157,1774708253459,-604657.961748,0.000249,3]
[418982158,1774708253468,-172.39694558,0.00025,5]
[418982159,1774708253479,-7685.79094912,0.00025,7]
[418982160,1774708253695,-1691.09468468,0.00025,7]
[418982161,1774708253707,-399.58215626,0.00025,7]
[418982162,1774708253723,-621.0,0.00018756,2]
[418982163,1774708253733,-147.71294345,0.00025,7]
[418982164,1774708253750,-397.99309495,0.00025,7]
[418982165,1774708253873,-1152.63623287,0.00013488,2]
[418982166,1774708253885,-4701.06300757,0.00013488,2]
[418982167,1774708253895,-569.0,0.00016111,2]
[418982168,1774708253905,-621.0,0.00021756,2]
[418982169,1774708253915,-150.0,0.00024658,2]
[418982170,1774708253926,-621.0,0.00024756,2]
[418982171,1774708253936,-28384.69556789,0.00025,7]
[418982172,1774708253948,-1027.23724345,0.00025,7]
[418982173,1774708254668,-168.590016,0.00015256,7]
[418982174,1774708254678,-590.065056,0.00017544,7]
[418982175,1774708254688,-286.0,0.00018,2]
[418982176,1774708254697,-590.065056,0.00019832,7]
[418982177,1774708254707,-1803.54067376,0.00025,7]
[418982178,1774708254719,-108556.20219212,0.00025,7]
[418982179,1774708254740,-387.93218086,0.00025,7]
[418982180,1774708299985,218.72,0.00012481,2]
[418982181,1774708350110,205.56356212,0.0001,2]
[418982182,1774708362344,1355.39,0.00011986,2]
[418982183,1774708363164,1100.0,0.00012506,2]
[418982184,1774708428615,406.73,0.00012021,2]
[418982185,1774708462121,217.94,0.00012527,2]
[418982186,1774708490171,590.25,0.00012128,2]
[418982187,1774708582798,374.29061257,0.00012776,2]
[418982188,1774708587810,125.70938743,0.00012773,2]
[418982189,1774708587836,202.10141257,0.00012773,2]
[418982190,1774708608025,-444.40904498,0.0001279,2]
[418982191,1774708608068,-2824.39849988,0.0001279,2]
[418982192,1774708608100,-150.0,0.000128,2]
[418982193,1774708608133,-620.0,0.00012824,2]
[418982194,1774708608164,-250.0,0.00012836,2]
[418982195,1774708608412,-300.0,0.00012846,2]
[418982196,1774708610964,-4828.43566323,0.0001279,2]
[418982197,1774708614087,-343.13867354,0.0001279,2]
[418982198,1774708614118,-2344.80700048,0.0001279,2]
[418982199,1774708614228,-1474.27767715,0.0001279,2]
[418982200,1774708616989,-3149.84097481,0.0001279,2]
[418982201,1774708617023,-1200.0,0.00012847,2]
[418982202,1774708617053,-526.32805038,0.00012848,2]
[418982203,1774708617111,-247.67194962,0.00012848,2]
[418982204,1774708620158,-150.0,0.000128,2]
[418982205,1774708620192,-300.0,0.00012848,2]
[418982206,1774708620226,-4100.01,0.00012849,2]
[418982207,1774708620330,-899.99,0.00012849,2]
[418982208,1774708674232,297.89858743,0.00012493,2]
[418982209,1774708674261,500.0,0.00012493,2]
[418982210,1774708674288,150.56696842,0.00012493,2]
[418982211,1774708674315,19.82444415,0.00012493,2]
[418982212,1774708689314,295.78537351,0.00012776,2]
[418982213,1774708709032,184.39018234,0.0001269,2]
[418982214,1774708709059,110.29277837,0.0001269,2]
[418982215,1774708715032,223.1891788,0.00012474,2]
[418982216,1774708715058,166.51804283,0.00012474,2]
[418982217,1774708715082,194.65607326,0.00012474,2]
[418982236,1774708922976,-257.0,9.809e-05,2]
[418982237,1774708923008,-170.35,9.809e-05,2]
[418982238,1774708923038,-193.0,0.0001079,2]
[418982239,1774708923069,-153.2896224,0.00011115,2]
[418982240,1774708923283,-193.0,0.00011115,2]
[418982241,1774708923313,-166.66,0.00011385,2]
[418982242,1774708923343,-166.66,0.00011624,2]
[418982243,1774708923373,-166.66,0.00011864,2]
[418982244,1774708923403,-165.56177113,0.00011962,2]
[418982245,1774708923433,-200.0,0.00012061,2]
[418982246,1774708923463,-166.66,0.00012104,2]
[418982247,1774708923494,-166.66,0.00012344,2]
[418982248,1774708923527,-2002.47,0.00012421,2]
[418982249,1774708923558,-300.0,0.00012472,2]
[418982250,1774708923760,-1200.0,0.00012473,2]
[418982251,1774708923790,-300.0,0.00012473,2]
[418982252,1774708923820,-300.0,0.00012473,2]
[418982253,1774708924092,-464.06721294,0.00012474,2]
[418982254,1774708924108,-300.0,0.00012474,2]
[418982255,1774708924125,-300.0,0.00012474,2]
[418982256,1774708924169,-6400.01,0.00012474,2]
[418982257,1774708925481,-3804.62050783,0.00012474,2]
[418982258,1774708925506,-2390.76898434,0.00012474,2]
[418982260,1774708932407,-166.66,0.00012583,2]
[418982261,1774708932441,-2512.33133398,0.00012632,2]
[418982262,1774709085873,5578.07,0.00012094,2]
[418982264,1774709185872,1500.0,0.00012027,2]
[418982265,1774709224332,710.51,0.00011633,2]
[418982266,1774709226445,1600.0,0.00012013,2]
[418982267,1774709235404,150.0,0.00011958,2]
[418982268,1774709254658,2489.83,0.00011928,2]
[418982269,1774709289843,445.22,0.00011259,2]
[418982270,1774709290360,900.11,0.0001159,2]
[418982271,1774709290879,853.43,0.00011932,2]
[418982272,1774709291567,580.0,0.00012107,2]
[418982273,1774709291914,389.34,0.00012386,2]
[418982275,1774709378865,4342.08,0.00011818,2]
[418982276,1774709378891,1570.55,0.00011818,2]
[418982277,1774709381031,4095.21,0.00011818,2]
[418982278,1774709392347,2000.0,0.00011818,2]
[418982279,1774709405867,781.97975538,0.00012473,2]
[418982280,1774709416201,341.41,0.00012067,2]
[418982281,1774709432139,-1300.27898027,0.000125,2]
[418982282,1774709432188,-384.2792077,0.000125,2]
[418982283,1774709432197,-300.0,0.00012572,2]
[418982284,1774709432207,-1200.0,0.00012572,2]
[418982285,1774709432217,-250.0,0.00012572,2]
[418982286,1774709432226,-122207.22352578,0.00012573,2]
[418982287,1774709432235,-399.17118151,0.00012573,2]
[418982289,1774709432245,-210.50443298,0.00012573,2]
[418982291,1774709432254,-207.26268319,0.00012573,2]
[418982293,1774709432263,-5124.52320385,0.00012573,2]
[418982295,1774709432273,-250.0,0.00012604,2]
[418982297,1774709432282,-1882.93233324,0.00012622,2]
[418982299,1774709432292,-4645.95043496,0.00012622,2]
[418982301,1774709432301,-32419.0,0.0001263,2]
[418982303,1774709432311,-1000.0,0.0001267,2]
[418982305,1774709432320,-500.0,0.0001267,2]
[418982307,1774709432330,-500.0,0.00012671,2]
[418982309,1774709432339,-500.0,0.00012671,2]
[418982311,1774709432349,-264.01290907,0.00012671,2]
[418982313,1774709432358,-182.96447148,0.00012671,2]
[418982315,1774709432367,-268.80694624,0.00012671,2]
[418982317,1774709432377,-625.45103338,0.00012671,2]
[418982319,1774709432385,-500.0,0.00012671,2]
[418982321,1774709432395,-500.0,0.00012671,2]
[418982323,1774709432404,-500.0,0.00012671,2]
[418982325,1774709432414,-500.0,0.00012671,2]
[418982327,1774709432423,-500.0,0.00012671,2]
[418982329,1774709432433,-500.0,0.00012671,2]
[418982331,1774709432442,-500.0,0.00012671,2]
[418982333,1774709432451,-500.0,0.00012671,2]
[418982335,1774709432461,-500.0,0.00012671,2]
[418982337,1774709432470,-500.0,0.00012671,2]
[418982339,1774709432479,-500.0,0.00012671,2]
[418982341,1774709432489,-534.80903635,0.00012671,2]
[418982343,1774709432498,-500.0,0.00012671,2]